bitfinex/quotes_ETHUSD_20250216
["timestamp","ask_amount","ask_price","bid_price","bid_amount"]
[1739686853827,3.68542,2713.4,2713.1,0.15181554]
[1739686854026,3.68561,2713.3,2713.1,0.15181554]
[1739686854224,3.68561,2713.3,2712.9,3.0]
[1739686854437,3.68572,2713.2,2713.0,0.15191677]
[1739686854642,4.47012,2713.2,2713.0,0.15191677]
[1739686855383,0.7844,2713.6,2713.0,2.69035977]
[1739686855568,3.68558,2713.3,2713.0,2.69035977]
[1739686856086,3.68541,2713.4,2713.0,2.69035977]
[1739686856250,8.15585,2713.2,2713.0,0.15191677]
[1739686856456,4.47008,2713.2,2713.0,0.15191677]
[1739686856679,4.47008,2713.2,2712.8,4.71331484]
[1739686856886,4.47008,2713.2,2713.1,0.15181554]
[1739686857086,4.47008,2713.2,2712.8,4.71331484]
[1739686857386,3.6859,2713.1,2712.8,5.62182132]
[1739686857567,3.6859,2713.1,2712.9,0.152018]
[1739686860163,0.7844,2713.2,2712.9,0.152018]
[1739686860358,4.47015,2713.2,2712.9,0.152018]
[1739686861074,3.68556,2713.3,2712.9,0.152018]
[1739686861244,3.68556,2713.3,2712.9,1.46665193]
[1739686861640,3.68575,2713.2,2712.9,1.46665193]
[1739686862293,3.68556,2713.3,2712.9,1.46665193]
[1739686862475,3.68556,2713.3,2712.9,0.152018]
[1739686862672,3.68575,2713.2,2712.9,0.452118]
[1739686863991,3.68582,2713.1,2712.9,0.152018]
[1739686869250,3.68561,2713.3,2712.9,0.152018]
[1739686869475,3.68577,2713.2,2712.9,0.152018]
[1739686871320,0.8181,2713.4,2713.0,5.09909484]
[1739686871587,3.95133,2713.5,2713.1,0.3001]
[1739686872089,3.95133,2713.5,2713.2,0.15186556]
[1739686872965,0.266,2713.5,2713.2,0.15186556]
[1739686873300,8.94538644,2713.7,2713.2,3.83746556]
[1739686873470,3.68501,2713.7,2713.2,4.7611316]
[1739686874067,3.68501,2713.7,2713.2,4.7611216]
[1739686874268,7.37012,2713.7,2713.2,4.7611216]
[1739686874491,3.68515,2713.6,2713.2,4.7611216]
[1739686874687,3.68532,2713.5,2713.2,1.0755316]
[1739686874992,3.68532,2713.5,2713.2,0.15186556]
[1739686875602,0.7523,2713.4,2713.2,0.15186556]
[1739686875920,0.7523,2713.4,2713.0,5.09907484]
[1739686876121,0.7523,2713.4,2713.3,0.15176787]
[1739686876327,0.7523,2713.4,2713.0,8.78496484]
[1739686876621,0.7523,2713.4,2713.3,0.15176787]
[1739686876774,0.7523,2713.4,2713.1,0.99402311]
[1739686876973,0.7523,2713.4,2713.3,0.15176787]
[1739686877204,0.7523,2713.4,2713.2,0.15186907]
[1739686877529,0.7523,2713.4,2713.3,0.15176787]
[1739686878016,0.7523,2713.4,2712.9,3.3001]
[1739686878222,4.43771,2713.4,2713.3,0.15176787]
[1739686878427,3.68557,2713.3,2712.9,3.3001]
[1739686878773,3.68557,2713.3,2712.9,6.98616]
[1739686879507,4.43772,2713.4,2712.9,6.98616]
[1739686880146,4.43772,2713.4,2713.0,0.15200821]
[1739686880498,0.7523,2713.4,2713.0,3.83788821]
[1739686880746,4.43777,2713.4,2713.0,1.00712852]
[1739686881051,4.43771,2713.4,2713.0,4.69305852]
[1739686881203,4.43771,2713.4,2713.0,1.00712852]
[1739686882348,4.43771,2713.4,2713.0,0.15200821]
[1739686883885,3.68561,2713.3,2713.0,0.15200821]
[1739686884438,0.7845,2713.1,2713.0,0.15200821]
[1739686884640,4.47032,2713.1,2712.7,3.0]
[1739686884953,4.47032,2713.1,2712.8,0.14960719]
[1739686885173,3.68596,2713.0,2712.8,0.14960719]
[1739686885650,3.68596,2713.0,2712.6,4.71331484]
[1739686885847,3.68596,2713.0,2712.7,0.14970844]
[1739686886480,0.7845,2713.1,2712.7,0.14970844]
[1739686886684,4.47032,2713.1,2712.7,0.14970844]
[1739686888896,0.7845,2713.1,2712.7,0.14970844]
[1739686889055,4.47032,2713.1,2712.7,3.83601844]
[1739686889257,4.47032,2713.1,2712.7,0.14970844]
[1739686891258,0.7845,2713.4,2713.0,3.68593]
[1739686891493,0.7845,2713.4,2713.1,0.14941226]
[1739686891863,4.46997,2713.4,2712.9,3.98606]
[1739686892063,4.46997,2713.4,2713.0,0.14951349]
[1739686892392,0.266,2713.5,2713.1,3.68575]
[1739686892755,0.266,2713.5,2713.2,0.14931105]
[1739686892993,9.21148644,2713.7,2713.3,0.3001]
[1739686893171,0.97047569,2713.8,2713.3,0.3001]
[1739686893388,3.68503,2713.7,2713.3,0.3001]
[1739686893590,3.68503,2713.7,2713.4,0.14910864]
[1739686894521,7.37014,2713.7,2713.4,0.14910864]
[1739686895029,3.68503,2713.7,2713.4,0.14910864]
[1739686896032,7.37011,2713.7,2713.4,0.14910864]
[1739686896530,3.68514,2713.6,2713.4,0.14910864]
[1739686896725,3.68527,2713.5,2713.4,0.14910864]
[1739686896926,4.51097,2713.5,2713.4,0.14910864]
[1739686897129,4.51097,2713.5,2712.9,3.0]
[1739686897429,3.68558,2713.3,2712.9,3.0]
[1739686897632,4.51097,2713.5,2713.1,3.6858]
[1739686897798,4.51097,2713.5,2713.1,4.49580148]
[1739686897999,4.51097,2713.5,2713.1,0.3001]
[1739686898332,8.19634,2713.5,2713.1,0.3001]
[1739686898899,4.51097,2713.5,2713.1,0.3001]
[1739686899431,4.51076,2713.7,2713.2,3.68567]
[1739686899731,3.6852,2713.6,2713.1,3.98591]
[1739686899940,3.68539,2713.5,2713.1,0.3001]
[1739686902653,7.37094,2713.4,2713.0,4.41321484]
[1739686902864,8.19664,2713.4,2713.0,4.41321484]
[1739686903435,4.51112,2713.4,2713.0,4.41321484]
[1739686903636,0.8257,2713.4,2713.0,6.30759732]
[1739686903839,3.68529,2713.5,2713.0,5.09904484]
[1739686904023,0.8257,2713.3,2713.0,1.41321484]
[1739686904220,4.51134,2713.3,2712.9,3.3001]
[1739686905365,4.51134,2713.3,2712.9,6.98619]
[1739686905562,4.51106,2713.5,2713.0,4.89444548]
[1739686905739,4.51106,2713.5,2713.0,6.30766032]
[1739686905740,3.68543,2713.4,2713.0,6.30766032]
[1739686905938,3.68543,2713.4,2713.0,2.62177032]
[1739686908454,3.68555,2713.3,2713.0,2.62177032]
[1739686908656,3.68555,2713.3,2712.9,3.3001]
[1739686909431,3.68555,2713.3,2712.9,6.98618]
[1739686909631,3.68543,2713.4,2712.9,6.98618]
[1739686910358,3.68543,2713.4,2713.0,0.14940473]
[1739686910969,3.68543,2713.4,2713.0,3.83533473]
[1739686911156,3.68543,2713.4,2713.0,5.05881369]
[1739686911543,7.37093,2713.4,2713.0,1.37288369]
[1739686911744,3.68543,2713.4,2713.0,0.14940473]
[1739686911956,0.8257,2713.5,2713.0,0.14940473]
[1739686912156,3.68542,2713.4,2713.0,0.14940473]
[1739686912832,3.68542,2713.4,2713.0,3.83533473]
[1739686913535,0.8257,2713.5,2713.0,5.24854957]
[1739686913735,4.51104,2713.5,2713.0,6.47202653]
[1739686913947,0.8257,2713.5,2713.1,3.68575]
[1739686914160,3.68528,2713.5,2713.1,3.68575]
[1739686914359,3.68521,2713.6,2713.2,0.14920229]
[1739686914658,7.37046,2713.6,2713.2,0.14920229]
[1739686914855,3.68521,2713.6,2713.2,0.14920229]
[1739686915032,7.63642,2713.6,2713.0,4.41321484]
[1739686915232,3.95121,2713.6,2713.1,3.8350335]
[1739686915445,7.63644,2713.6,2713.1,3.8350335]
[1739686915639,3.95121,2713.6,2713.1,3.8350335]
[1739686916661,3.87093569,2713.8,2713.2,1.71331484]
[1739686916872,4.13693569,2713.8,2713.3,0.14910108]
[1739686917036,3.68501,2713.7,2713.2,5.39898484]
[1739686917376,3.68522,2713.6,2713.3,0.14910108]
[1739686917775,3.68522,2713.6,2713.2,0.3001]
[1739686917975,3.68522,2713.6,2713.4,0.14899988]
[1739686918177,3.68522,2713.6,2713.2,3.98577]
[1739686918178,3.68522,2713.6,2713.3,0.14910108]
[1739686918349,3.68522,2713.6,2713.5,0.14889868]
[1739686918553,3.68522,2713.6,2713.4,0.14899988]
[1739686918752,3.68522,2713.6,2713.5,0.14889868]
[1739686919071,3.68522,2713.6,2713.2,3.98577]
[1739686919376,3.68522,2713.6,2713.3,0.14910108]
[1739686919676,3.68522,2713.6,2713.2,4.52566848]
[1739686919974,3.68522,2713.6,2713.3,0.14910108]
[1739686920353,3.68522,2713.6,2713.2,0.3001]
[1739686920548,4.46233,2713.5,2713.4,0.14899988]
[1739686920753,3.68541,2713.4,2713.3,0.14910108]
[1739686920980,3.68559,2713.3,2712.9,3.98616]
[1739686921154,3.68573,2713.2,2712.9,0.3001]
[1739686921354,3.68573,2713.2,2712.5,3.68658]
[1739686921355,3.68606,2713.0,2712.6,1.41321484]
[1739686922542,3.68606,2713.0,2712.6,4.41321484]
[1739686922744,3.68606,2713.0,2712.6,5.25319832]
[1739686923675,4.46284,2713.1,2712.6,5.25319832]
[1739686923850,3.68595,2713.0,2712.6,5.25319832]
[1739686924309,3.68614,2712.9,2712.6,2.25319832]
[1739686925098,3.68614,2712.9,2712.7,0.14755652]
[1739686928103,4.46042,2712.8,2712.7,0.14755652]
[1739686928608,4.46042,2712.8,2712.2,4.71331484]
[1739686928609,3.68683,2712.4,2712.0,1.41321484]
[1739686933029,3.68697,2712.3,2712.0,1.41321484]
[1739686934352,7.37371,2712.4,2712.0,1.41321484]
[1739686934638,3.68691,2712.3,2712.0,1.41321484]
[1739686936006,3.68706,2712.2,2712.0,1.41321484]
[1739686936630,3.68683,2712.4,2712.0,1.41321484]
[1739686936845,3.68691,2712.3,2712.0,1.41321484]
[1739686937550,3.68705,2712.2,2712.0,1.41321484]
[1739686939046,3.68688,2712.4,2712.0,1.41321484]
[1739686939679,3.6871,2712.2,2712.0,1.41321484]
[1739686940104,3.6871,2712.2,2712.1,0.13974901]
[1739686940507,4.46094,2712.5,2712.1,0.13974901]
[1739686940806,7.37398,2712.3,2712.1,0.13974901]
[1739686941010,3.68697,2712.3,2712.1,0.13974901]
[1739686942656,7.37399,2712.3,2712.1,0.13974901]
[1739686943174,3.68704,2712.2,2712.1,0.13974901]
[1739686944394,3.68692,2712.3,2712.1,0.13974901]
[1739686944766,0.7742,2712.5,2712.1,0.13974901]
[1739686944970,3.6868,2712.4,2712.1,0.13974901]
[1739686945214,7.37365,2712.4,2712.1,0.13974901]
[1739686945515,3.6868,2712.4,2712.1,0.13974901]
[1739686945665,3.68691,2712.3,2712.1,0.13974901]
[1739686945865,3.6868,2712.4,2712.1,0.13974901]
[1739686946064,3.68704,2712.2,2712.1,0.13974901]
[1739686947886,3.68704,2712.2,2711.8,4.41321484]
[1739686948084,3.68719,2712.1,2711.8,4.41321484]
[1739686948399,3.68719,2712.1,2711.9,0.13992703]
[1739686951213,3.68731,2712.0,2711.9,0.13992703]
[1739686956386,3.68731,2712.0,2711.7,0.3001]
[1739686956597,3.68731,2712.0,2711.9,0.13768753]
[1739686956810,7.3747,2712.0,2711.8,0.13778885]
[1739686957014,3.68731,2712.0,2711.9,0.13768753]
[1739686957224,0.7512,2712.2,2711.9,0.13768753]
[1739686957387,0.7512,2712.2,2711.8,1.41321484]
[1739686957719,4.43837,2712.2,2711.9,0.13768753]
[1739686957881,3.68721,2712.1,2711.9,0.13768753]
[1739686959997,4.4383,2712.2,2711.9,0.13768753]
[1739686960694,0.7512,2712.2,2711.9,0.13768753]
[1739686960902,4.43824,2712.2,2711.9,0.13768753]
[1739686961096,0.7512,2712.2,2711.9,0.13768753]
[1739686962521,3.6872,2712.1,2711.9,0.13768753]
[1739686967632,0.7512,2712.2,2711.9,0.13768753]
[1739686967832,4.4383,2712.2,2711.9,0.13768753]
[1739686968242,0.7512,2712.2,2711.9,0.13768753]
[1739686968450,3.6872,2712.1,2711.9,0.13768753]
[1739686968741,4.43828,2712.2,2711.9,0.13768753]
[1739686970838,3.68722,2712.1,2711.9,0.13768753]
[1739686971301,4.43828,2712.2,2711.9,0.13768753]
[1739686971505,8.12545,2712.2,2711.9,0.13768753]
[1739686972353,3.68723,2712.1,2711.9,0.13768753]
[1739686972636,0.7512,2712.2,2711.9,0.13768753]
[1739686972838,3.68682,2712.4,2711.9,0.32278777]
[1739686972839,8.16131,2712.4,2711.9,0.32278777]
[1739686973048,8.16131,2712.4,2712.0,1.41321484]
[1739686973221,4.47442,2712.4,2712.0,1.41321484]
[1739686973418,8.16132,2712.4,2712.1,0.13530862]
[1739686973615,3.68704,2712.2,2712.1,0.13530862]
[1739686973954,3.68704,2712.2,2711.8,5.10067484]
[1739686974168,3.68704,2712.2,2711.9,0.13551122]
[1739686974361,3.68698,2712.3,2711.9,0.13551122]
[1739686975122,7.37399,2712.3,2711.9,0.13551122]
[1739686976356,4.74038,2712.4,2711.9,3.82293122]
[1739686976652,3.687,2712.3,2711.9,0.13551122]
[1739686977258,3.68699,2712.3,2711.9,0.13551122]
[1739686977432,7.37397,2712.3,2711.9,0.13551122]
[1739686977629,1.0536,2712.4,2711.9,0.13551122]
[1739686977820,3.687,2712.3,2711.9,0.13551122]
[1739686978314,3.687,2712.3,2711.9,3.82294122]
[1739686978550,7.374,2712.3,2711.9,0.13551122]
[1739686978744,3.687,2712.3,2711.9,0.13551122]
[1739686978955,7.37401,2712.3,2711.9,0.13551122]
[1739686979449,3.687,2712.3,2711.9,0.13551122]
[1739686979655,7.37399,2712.3,2711.9,0.13551122]
[1739686979828,3.68699,2712.3,2711.9,0.13551122]
[1739686980034,7.37397,2712.3,2711.9,0.13551122]
[1739686980229,3.687,2712.3,2711.9,0.13551122]
[1739686980447,7.374,2712.3,2711.9,0.13551122]
[1739686980630,1.0536,2712.4,2712.0,0.3001]
[1739686980960,0.266,2712.4,2712.1,0.13527351]
[1739686981161,7.37399,2712.3,2712.0,0.3001]
[1739686981333,0.266,2712.4,2712.1,0.13527351]
[1739686981533,4.47456,2712.3,2711.8,5.40083484]
[1739686981757,4.47456,2712.3,2711.9,0.13547611]
[1739686988748,3.68706,2712.2,2711.9,0.13547611]
[1739686989149,4.47452,2712.3,2711.9,0.13547611]
[1739686991281,8.16154,2712.3,2711.9,0.13547611]
[1739686991580,4.47452,2712.3,2711.9,0.13547611]
[1739686994684,4.47452,2712.3,2711.9,3.82292611]
[1739686994987,4.47452,2712.3,2711.9,0.13547611]
[1739686997590,3.68707,2712.2,2711.9,0.13547611]
[1739686998285,0.7876,2712.3,2711.9,0.13547611]
[1739686998491,4.47451,2712.3,2711.9,0.13547611]
[1739686999588,8.16153,2712.3,2711.9,0.13547611]
[1739687000576,4.47451,2712.3,2711.9,0.13547611]
[1739687001653,0.7876,2712.3,2711.9,0.13547611]
[1739687001858,4.47455,2712.3,2711.9,0.13547611]
[1739687003957,0.7876,2712.3,2711.9,0.13547611]
[1739687004158,3.9528,2712.4,2712.0,3.68731]
[1739687004467,3.9528,2712.4,2712.1,0.13300245]
[1739687004789,3.9528,2712.4,2711.8,5.40076484]
[1739687004955,0.266,2712.4,2712.0,3.68725]
[1739687005156,3.95279,2712.4,2712.1,0.13300245]
[1739687005488,3.95279,2712.4,2711.9,7.37469]
[1739687005691,3.95279,2712.4,2712.2,0.13290116]
[1739687005857,3.95279,2712.4,2711.9,7.37469]
[1739687006058,3.95279,2712.4,2712.3,0.13279987]
[1739687006258,3.95279,2712.4,2711.9,3.68733]
[1739687006459,3.68691,2712.3,2711.9,4.26625476]
[1739687006694,3.68691,2712.3,2712.0,0.13310375]
[1739687009487,0.266,2712.4,2712.0,3.82041375]
[1739687009670,3.95283,2712.4,2712.0,3.82041375]
[1739687009871,3.68693,2712.3,2712.0,0.13310375]
[1739687010902,3.68693,2712.3,2711.8,5.40083484]
[1739687011214,3.68693,2712.3,2711.8,6.60968132]
[1739687011414,3.68693,2712.3,2711.9,0.13320505]
[1739687013834,3.68693,2712.3,2711.9,3.82063505]
[1739687013985,3.68693,2712.3,2711.9,0.13320505]
[1739687014918,3.68693,2712.3,2711.9,3.82058505]
[1739687015517,3.68693,2712.3,2711.9,0.13320505]
[1739687016331,3.95283,2712.4,2711.9,3.82063505]
[1739687016917,0.266,2712.4,2711.9,3.82063505]
[1739687017119,3.95277,2712.4,2711.9,3.82063505]
[1739687018823,3.68691,2712.3,2711.9,3.82063505]
[1739687019022,3.68691,2712.3,2711.9,5.16367769]
[1739687020217,0.266,2712.4,2711.9,5.16360769]
[1739687020726,3.95283,2712.4,2712.0,3.68729]
[1739687021018,3.95283,2712.4,2712.1,0.13080154]
[1739687021317,0.266,2712.4,2712.1,0.13080154]
[1739687021491,3.95285,2712.4,2712.1,0.13080154]
[1739687021690,3.95285,2712.4,2711.9,3.68741]
[1739687021885,3.95285,2712.4,2712.2,0.13070025]
[1739687022090,3.95285,2712.4,2711.9,3.68741]
[1739687022286,3.95285,2712.4,2711.9,3.68737]
[1739687022693,3.95285,2712.4,2712.0,0.13090284]
[1739687023117,7.6397,2712.4,2712.0,0.13090284]
[1739687023300,3.95285,2712.4,2712.0,0.13090284]
[1739687023487,7.6397,2712.4,2712.0,0.13090284]
[1739687023689,7.63973,2712.4,2712.0,0.13090284]
[1739687024124,3.95285,2712.4,2712.0,0.13090284]
[1739687024425,7.63974,2712.4,2712.0,0.13090284]
[1739687024626,3.95285,2712.4,2712.0,0.13090284]
[1739687025525,3.687,2712.3,2712.0,0.13090284]
[1739687025828,3.687,2712.3,2711.8,5.40089484]
[1739687026027,3.687,2712.3,2712.1,0.13078048]
[1739687026233,3.687,2712.3,2711.8,5.40089484]
[1739687026595,3.687,2712.3,2711.8,5.40089484]
[1739687026793,3.687,2712.3,2711.9,0.13098308]
[1739687031099,3.95285,2712.4,2711.9,3.81830308]
[1739687031331,7.63972,2712.4,2711.9,3.81830308]
[1739687031627,7.63969,2712.4,2711.9,3.81830308]
[1739687031927,0.266,2712.4,2711.9,0.13098308]
[1739687032100,3.68692,2712.3,2711.9,0.13098308]
[1739687032925,3.68692,2712.3,2711.9,3.81840308]
[1739687033434,3.68692,2712.3,2711.9,0.13098308]
[1739687034634,3.68692,2712.3,2711.9,3.81836308]
[1739687034927,0.266,2712.4,2711.9,3.81836308]
[1739687035311,3.95283,2712.4,2711.9,3.81836308]
[1739687036138,0.266,2712.4,2711.9,3.81836308]
[1739687036300,0.266,2712.4,2712.0,3.68718]
[1739687036495,0.266,2712.4,2711.9,3.81836308]
[1739687036714,3.95284,2712.4,2712.1,0.12852696]
[1739687036915,3.95284,2712.4,2712.0,0.12862826]
[1739687037131,3.95284,2712.4,2712.2,0.12842567]
[1739687037333,3.95284,2712.4,2712.1,0.12852696]
[1739687037632,3.95284,2712.4,2712.2,0.12842567]
[1739687038039,0.266,2712.4,2711.9,3.68737]
[1739687038337,3.9528,2712.4,2711.9,4.22743848]
[1739687038630,3.9528,2712.4,2712.0,0.12862826]
[1739687039201,0.79757638,2712.3,2712.0,0.12862826]
[1739687044128,0.79757638,2712.3,2712.1,0.3001]
[1739687044511,0.79757638,2712.3,2712.2,0.1284011]
[1739687045459,0.79757638,2712.3,2712.2,5.22865594]
[1739687045660,0.79757638,2712.3,2712.2,6.49089366]
[1739687045954,0.79757638,2712.3,2712.2,9.49088936]
[1739687046122,0.79757638,2712.3,2712.2,9.45402659]
[1739687046662,0.79757638,2712.3,2712.2,15.37402659]
[1739687047315,6.38e-06,2712.3,2712.2,15.37402659]
[1739687050568,6.38e-06,2712.3,2712.2,24.27402659]
[1739687054364,0.7583,2713.4,2712.4,0.55]
[1739687054570,0.7583,2713.4,2713.1,1.41321484]
[1739687054965,0.7583,2713.4,2713.2,0.12621698]
[1739687055142,4.44384,2713.3,2713.2,0.12621698]
[1739687055549,4.44445,2712.9,2712.5,6.78321484]
[1739687055753,4.44454,2712.8,2712.5,1.41321484]
[1739687055967,1.0233,2713.0,2712.6,1.41321484]
[1739687056136,1.0233,2713.0,2712.0,1.71331484]
[1739687056137,1.0233,2713.0,2712.8,1.41321484]
[1739687056336,4.70926,2713.0,2712.8,1.41321484]
[1739687056571,1.0233,2713.0,2712.8,1.41321484]
[1739687056876,1.0233,2713.0,2712.8,5.09936484]
[1739687058243,1.0233,2713.0,2712.8,1.41321484]
[1739687058867,1.0233,2713.0,2712.6,5.09961484]
[1739687059454,1.0233,2713.0,2712.6,8.78603484]
[1739687059655,1.0233,2713.0,2712.8,1.41321484]
[1739687060155,1.0233,2713.0,2712.9,0.12219613]
[1739687061053,5.548757,2713.0,2712.9,0.12219613]
[1739687061250,4.790457,2713.0,2712.6,1.41321484]
[1739687061561,4.50373,2712.8,2712.7,0.12241258]
[1739687061986,0.8175,2712.5,2712.2,6.78321484]
[1739687062153,0.8175,2712.5,2712.3,3.0]
[1739687062355,0.8175,2712.5,2712.2,1.41321484]
[1739687062762,0.8175,2712.5,2712.4,1.41321484]
[1739687067710,3.68563,2713.3,2712.4,2.29192132]
[1739687067916,0.8175,2713.2,2712.9,1.41321484]
[1739687068106,0.8175,2713.2,2712.9,5.09918484]
[1739687068877,5.26037644,2713.4,2713.1,5.09903484]
[1739687069077,0.8175,2713.5,2713.2,3.68556]
[1739687069285,0.8175,2713.5,2713.2,3.68565]
[1739687070197,0.8175,2713.5,2713.2,4.56411848]
[1739687070392,0.8175,2713.5,2713.2,0.87846848]
[1739687070797,0.8175,2713.5,2713.1,5.09902484]
[1739687071114,0.8175,2713.5,2713.1,1.41321484]
[1739687071587,0.8175,2713.5,2713.2,3.68562]
[1739687071793,0.8175,2713.5,2713.1,5.09894484]
[1739687072113,0.8175,2713.5,2713.3,1.41321484]
[1739687075240,0.8175,2713.5,2713.4,0.11758448]
[1739687077039,4.50277,2713.5,2713.4,0.11758448]
[1739687079143,4.50277,2713.5,2713.1,1.41321484]
[1739687079437,4.50277,2713.5,2713.4,0.11717594]
[1739687080163,4.50277,2713.5,2713.1,1.41321484]
[1739687080330,4.50277,2713.5,2713.4,0.11717594]
[1739687080647,4.50277,2713.5,2713.1,1.41321484]
[1739687081149,4.50277,2713.5,2713.2,0.11737835]
[1739687081514,0.8175,2713.5,2713.2,0.11737835]
[1739687081833,3.68554,2713.3,2713.2,0.11737835]
[1739687082058,4.45454,2713.3,2713.2,0.11737835]
[1739687083076,4.45454,2713.3,2712.9,1.41321484]
[1739687083077,3.68578,2713.2,2712.9,1.41321484]
[1739687083242,3.68586,2713.1,2712.9,1.41321484]
[1739687084971,3.68569,2713.2,2712.9,1.41321484]
[1739687085166,7.37144,2713.2,2712.9,1.41321484]
[1739687085339,3.68569,2713.2,2712.9,1.41321484]
[1739687086371,4.45461,2713.3,2712.9,2.22316832]
[1739687087574,4.45458,2713.3,2712.9,2.22316832]
[1739687088077,0.769,2713.3,2713.0,3.68592]
[1739687088576,3.68551,2713.4,2713.1,1.41321484]
[1739687089344,3.68555,2713.3,2712.9,8.09920484]
[1739687090309,9.71467644,2713.5,2713.0,0.11759674]
[1739687090482,3.68542,2713.4,2713.0,0.11759674]
[1739687091313,9.71467644,2713.5,2713.0,0.11759674]
[1739687091510,3.68544,2713.4,2713.0,3.80354674]
[1739687094116,3.68563,2713.3,2713.0,0.11759674]
[1739687094799,3.68542,2713.4,2713.0,3.80353674]
[1739687095303,9.71471644,2713.5,2713.0,0.11759674]
[1739687095509,3.68548,2713.4,2713.0,0.11759674]
[1739687095710,3.68548,2713.4,2713.0,3.80351674]
[1739687096819,3.68548,2713.4,2713.0,0.11759674]
[1739687099244,3.68548,2713.4,2713.0,3.80352674]
[1739687099387,6.02937644,2713.5,2713.0,3.80352674]
[1739687099596,6.02937644,2713.5,2713.2,0.3001]
[1739687099597,5.26037644,2713.5,2713.2,0.3001]
[1739687100128,5.26037644,2713.5,2713.3,3.8027341]
[1739687101296,5.26037644,2713.5,2713.4,3.68541]
[1739687101492,5.26037644,2713.5,2713.4,3.80252657]
[1739687103026,5.26037644,2713.5,2713.4,0.11711657]
[1739687103795,3.68487,2713.8,2713.4,0.11711657]
[1739687104393,3.68487,2713.8,2713.4,3.80251657]
[1739687105159,3.68487,2713.8,2713.4,0.11711657]
[1739687105362,3.685,2713.7,2713.4,0.11711657]
[1739687105564,3.68521,2713.6,2713.4,0.11711657]
[1739687105931,3.68521,2713.6,2713.2,0.3001]
[1739687106130,3.68521,2713.6,2713.5,0.11701537]
[1739687106359,3.68521,2713.6,2713.1,5.09892484]
[1739687106360,0.794,2713.5,2713.1,5.09892484]
[1739687106565,0.794,2713.5,2713.1,6.00742732]
[1739687107264,0.794,2713.5,2713.2,3.68567]
[1739687110776,0.794,2713.5,2713.1,6.00747732]
[1739687110969,0.794,2713.7,2713.4,3.68534]
[1739687111165,0.794,2713.7,2713.3,5.09875484]
[1739687111469,0.794,2713.7,2713.4,3.68541]
[1739687111645,0.794,2713.7,2713.3,2.38249757]
[1739687111845,0.794,2713.7,2713.3,6.06803757]
[1739687112448,4.47901,2713.7,2713.3,6.06803757]
[1739687112649,0.794,2713.7,2713.3,6.06803757]
[1739687114178,0.794,2713.7,2713.3,6.06794757]
[1739687114379,0.794,2713.7,2713.4,3.68538]
[1739687119188,0.794,2713.7,2713.3,2.38249757]
[1739687119613,0.794,2713.7,2713.4,3.68539]
[1739687120130,0.794,2713.7,2713.5,0.11476979]
[1739687122513,0.794,2713.7,2713.3,5.09875484]
[1739687122714,0.794,2713.7,2713.4,0.11487098]
[1739687122992,0.794,2713.7,2713.4,3.80024098]
[1739687123342,0.794,2713.7,2713.4,0.11487098]
[1739687123524,0.794,2713.7,2713.5,3.68521]
[1739687123825,0.794,2713.7,2713.6,0.1146686]
[1739687124122,0.794,2713.7,2713.4,3.68533]
[1739687124331,0.794,2713.7,2713.5,0.11476979]
[1739687128328,1.0381,2713.9,2713.5,0.11476979]
[1739687128528,1.0381,2713.9,2713.6,3.68514]
[1739687128735,1.0381,2713.9,2713.7,0.11456742]
[1739687130338,0.7731,2713.9,2713.7,0.11456742]
[1739687130882,0.7731,2713.9,2713.5,5.09848484]
[1739687131063,0.7731,2713.9,2713.8,0.11446625]
[1739687131209,0.7731,2713.9,2713.5,5.09848484]
[1739687131409,0.7731,2713.9,2713.8,0.11446625]
[1739687131944,0.7731,2713.9,2713.5,1.41321484]
[1739687132248,0.7731,2713.9,2713.8,0.11446625]
[1739687132407,0.7731,2713.9,2713.6,3.68512]
[1739687132606,0.7731,2713.9,2713.8,0.11445229]
[1739687132838,0.7731,2713.9,2713.7,0.11455346]
[1739687133043,0.7731,2713.9,2713.8,0.1139523]
[1739687133413,0.7731,2713.9,2713.7,1.41321484]
[1739687133618,4.72263,2714.1,2713.8,0.1139523]
[1739687134110,4.72263,2714.1,2713.9,0.11385114]
[1739687134336,4.72263,2714.1,2713.7,1.41321484]
[1739687134534,4.72263,2714.1,2714.0,0.11374998]
[1739687134741,4.72263,2714.1,2713.7,1.41321484]
[1739687134942,4.72263,2714.1,2714.0,0.11374998]
[1739687135130,4.72263,2714.1,2713.7,1.41321484]
[1739687135330,4.72263,2714.1,2713.8,0.1139523]
[1739687135529,4.72263,2714.1,2713.7,1.41321484]
[1739687135732,4.72263,2714.1,2713.8,0.1139523]
[1739687136039,4.72263,2714.1,2713.7,1.41321484]
[1739687136348,1.0381,2714.1,2713.8,0.1139523]
[1739687136735,0.7731,2714.1,2713.7,5.09821484]
[1739687136933,4.45757,2714.1,2713.9,0.11385114]
[1739687137107,4.45757,2714.1,2713.7,5.09821484]
[1739687137315,4.45757,2714.1,2713.8,0.1139523]
[1739687137514,0.7731,2714.1,2713.7,5.09821484]
[1739687137746,0.7731,2714.1,2714.0,0.1496]
[1739687137946,4.45756,2714.1,2714.0,0.1496]
[1739687138136,4.45756,2714.1,2714.0,0.26334998]
[1739687140952,5.29825,2714.1,2714.0,0.26334998]
[1739687141323,5.31875,2714.1,2714.0,0.26334998]
[1739687142414,4.47806,2714.1,2714.0,0.26334998]
[1739687147518,0.7936,2714.1,2714.0,0.26334998]
[1739687147723,3.94934,2714.2,2714.0,0.26334998]
[1739687147724,0.265,2714.2,2714.0,0.26334998]
[1739687149053,3.94934,2714.2,2714.0,0.26334998]
[1739687150146,3.68446,2714.1,2714.0,0.26334998]
[1739687152359,5.3301,2714.1,2714.0,0.26334998]
[1739687153732,6.74331484,2714.1,2714.0,9.98e-06]
[1739687153934,3.68577,2713.2,2712.9,1.41321484]
[1739687154152,4.48867,2713.2,2713.0,0.10610003]
[1739687154486,4.48866,2713.2,2713.0,0.10610003]
[1739687154965,3.95048,2713.4,2713.1,1.41321484]
[1739687155359,3.95048,2713.4,2713.2,0.10589692]
[1739687155863,3.68554,2713.3,2713.2,0.10589692]
[1739687156562,3.68554,2713.3,2713.2,0.10608116]
[1739687156731,3.68554,2713.3,2712.9,1.41321484]